bitfinex-derivatives/quotes_BTCF0:USTF0_20251110
["timestamp","ask_amount","ask_price","bid_price","bid_amount"]
[1762737081447,0.09505284,106480.0,106470.0,0.95204916]
[1762737081647,0.09505284,106480.0,106470.0,0.59124916]
[1762737082047,0.46372284,106480.0,106470.0,0.006]
[1762737082245,1.51204837,106480.0,106470.0,0.00456559]
[1762737082450,0.04444,106460.0,106450.0,0.00014073]
[1762737082652,0.40524,106460.0,106450.0,0.00233876]
[1762737082849,0.40524,106460.0,106450.0,0.14104206]
[1762737083154,0.40524,106460.0,106450.0,0.04707876]
[1762737083543,1.74840511,106460.0,106450.0,0.00014073]
[1762737083752,1.86497064,106460.0,106450.0,0.00014073]
[1762737084142,1.74840511,106460.0,106430.0,0.0939802]
[1762737084352,0.40524,106440.0,106430.0,0.1387202]
[1762737084651,0.37139949,106440.0,106430.0,0.14091823]
[1762737085350,0.37139949,106440.0,106430.0,0.09617893]
[1762737085351,0.70315949,106440.0,106430.0,0.09617893]
[1762737085554,0.34235949,106440.0,106430.0,0.11878893]
[1762737085856,0.34435949,106440.0,106430.0,0.11878893]
[1762737086154,0.34435949,106440.0,106430.0,0.14091893]
[1762737086349,0.70515949,106440.0,106430.0,0.14091893]
[1762737086541,0.70315949,106440.0,106430.0,0.14091893]
[1762737087951,0.70315949,106440.0,106430.0,0.11878893]
[1762737088255,0.70315949,106440.0,106430.0,0.09617893]
[1762737088653,0.81972502,106440.0,106430.0,0.0939809]
[1762737088953,0.80912553,106440.0,106420.0,0.13228479]
[1762737089147,0.3608,106430.0,106420.0,0.13448282]
[1762737090360,0.3608,106430.0,106420.0,0.13448952]
[1762737091251,0.3269584,106430.0,106420.0,0.13448952]
[1762737091452,0.3279584,106430.0,106420.0,0.13448952]
[1762737091752,0.3279584,106430.0,106420.0,0.13548952]
[1762737092154,0.001,106430.0,106420.0,0.18035952]
[1762737092348,0.00014073,106450.0,106440.0,0.1519721]
[1762737092545,0.00014073,106450.0,106440.0,0.15417013]
[1762737093056,0.00014073,106450.0,106440.0,0.17907131]
[1762737093254,0.80567511,106480.0,106470.0,0.0939456]
[1762737093255,0.05060511,106480.0,106470.0,0.0939456]
[1762737093456,0.74312511,106480.0,106470.0,0.09614363]
[1762737093650,0.74312511,106480.0,106470.0,0.14101363]
[1762737094353,0.74612511,106480.0,106470.0,0.14101363]
[1762737094958,0.81108553,106480.0,106470.0,0.00219803]
[1762737095160,0.81108553,106480.0,106450.0,0.0939624]
[1762737095357,0.47736553,106470.0,106460.0,0.00014073]
[1762737095547,0.83816553,106470.0,106460.0,0.00233876]
[1762737095751,0.83816553,106470.0,106460.0,0.00014073]
[1762737095946,1.43816553,106470.0,106460.0,0.00014073]
[1762737096160,1.3216,106470.0,106440.0,0.058]
[1762737096460,0.3608,106470.0,106460.0,0.10928253]
[1762737096764,0.69252,106470.0,106460.0,0.15415253]
[1762737096955,0.80908553,106470.0,106460.0,0.00219803]
[1762737097157,0.80908553,106470.0,106450.0,0.1171187]
[1762737097456,0.3608,106460.0,106450.0,0.00233876]
[1762737097951,0.3608,106460.0,106450.0,0.09630206]
[1762737098656,0.3608,106460.0,106450.0,0.09930206]
[1762737098856,0.3608,106460.0,106450.0,0.12246206]
[1762737099060,0.3608,106460.0,106450.0,0.14417206]
[1762737099549,3e-08,106470.0,106460.0,0.1519545]
[1762737099750,3e-08,106470.0,106460.0,0.15415253]
[1762737100154,3e-08,106470.0,106460.0,0.27071806]
[1762737100659,3e-08,106470.0,106460.0,0.63151806]
[1762737101063,3e-08,106470.0,106460.0,0.72544564]
[1762737101362,0.0045,106490.0,106480.0,0.1519368]
[1762737101565,0.0045,106490.0,106480.0,0.27070036]
[1762737102054,0.0045,106490.0,106480.0,0.96314036]
[1762737102262,0.05060511,106500.0,106490.0,0.138798]
[1762737102455,0.05060511,106500.0,106490.0,0.61836156]
[1762737102656,0.05060511,106510.0,106500.0,0.1519192]
[1762737102856,0.76440709,106520.0,106510.0,0.04487]
[1762737103057,0.76440709,106520.0,106510.0,0.14097833]
[1762737104063,0.40360709,106520.0,106510.0,0.50177833]
[1762737104264,0.34014,106520.0,106510.0,0.40886803]
[1762737104568,0.34514,106520.0,106510.0,0.50277843]
[1762737104862,0.75646886,106520.0,106510.0,0.00319803]
[1762737105160,0.75646886,106520.0,106510.0,0.02635803]
[1762737105364,0.39566886,106520.0,106510.0,0.40886803]
[1762737105562,0.06402886,106520.0,106510.0,0.50277833]
[1762737105767,0.11209709,106540.0,106530.0,0.1387627]
[1762737105963,0.494841,106550.0,106540.0,0.1518839]
[1762737106157,0.494841,106550.0,106540.0,0.1388181]
[1762737106460,0.494841,106550.0,106540.0,0.4996181]
[1762737106461,0.089411,106550.0,106540.0,0.4996181]
[1762737106660,0.07180914,106550.0,106540.0,0.61618363]
[1762737107462,0.07580914,106550.0,106540.0,0.61718363]
[1762737107759,0.08080914,106550.0,106540.0,0.61718363]
[1762737108859,0.12505914,106550.0,106540.0,0.4067342]
[1762737109062,0.12505914,106550.0,106540.0,0.5006181]
[1762737109369,0.48585914,106550.0,106540.0,0.0459342]
[1762737109563,0.48585914,106550.0,106540.0,0.1398181]
[1762737109869,0.48585914,106550.0,106540.0,0.0459342]
[1762737110058,0.48585914,106550.0,106540.0,0.1398181]
[1762737110365,0.48585914,106550.0,106540.0,0.0459342]
[1762737110565,0.12505914,106550.0,106540.0,0.1398181]
[1762737110952,0.05775,106550.0,106540.0,0.1398181]
[1762737111152,0.05775,106550.0,106540.0,0.0459342]
[1762737111357,0.41855,106550.0,106540.0,0.1398181]
[1762737111964,0.41855,106550.0,106540.0,0.0459342]
[1762737112261,0.86695553,106550.0,106540.0,0.001]
[1762737112463,0.75039,106550.0,106540.0,0.04578803]
[1762737112665,0.41855,106550.0,106540.0,0.15351193]
[1762737113668,0.39737,106550.0,106540.0,0.15351193]
[1762737113869,0.41855,106550.0,106540.0,0.15351193]
[1762737114264,0.75023,106550.0,106540.0,0.05962803]
[1762737114465,0.75023,106550.0,106540.0,0.04578803]
[1762737114769,0.75023,106550.0,106540.0,0.15351193]
[1762737115359,0.084911,106570.0,106560.0,0.1502963]
[1762737115564,0.02301,106570.0,106560.0,0.99065986]
[1762737116167,0.00047141,106570.0,106560.0,0.99065986]
[1762737116365,0.38597,106580.0,106570.0,0.1426175]
[1762737116664,0.38597,106580.0,106570.0,0.36299803]
[1762737117263,0.37470033,106580.0,106570.0,0.45685553]
[1762737117461,0.37970033,106580.0,106570.0,0.45685553]
[1762737118061,0.05483,106580.0,106570.0,0.45685553]
[1762737118261,0.38667,106580.0,106570.0,0.50561553]
[1762737118657,0.39059,106580.0,106570.0,0.50561553]
[1762737119068,0.39059,106580.0,106570.0,0.47903553]
[1762737119969,0.39059,106580.0,106570.0,0.50561553]
[1762737120375,0.00884589,106580.0,106570.0,0.50561553]
[1762737120574,0.00884589,106580.0,106570.0,0.68685169]
[1762737120772,0.00884589,106580.0,106570.0,0.57028616]
[1762737120963,0.00884589,106580.0,106570.0,0.68685169]
[1762737121275,0.00884589,106580.0,106570.0,0.57028616]
[1762737121574,0.00884589,106580.0,106570.0,1.40845169]
[1762737121768,0.00484589,106580.0,106570.0,1.40845169]
[1762737121964,0.134741,106600.0,106590.0,0.04876]
[1762737122161,0.134741,106600.0,106590.0,0.86639793]
[1762737122377,0.084911,106600.0,106590.0,0.9677059]
[1762737122767,1.419411,106610.0,106600.0,0.1582811]
[1762737122966,1.419411,106610.0,106600.0,0.63784466]
[1762737123172,1.419411,106610.0,106600.0,0.64748317]
[1762737123379,0.20404186,106620.0,106610.0,0.1425823]
[1762737123566,0.084911,106620.0,106610.0,0.95430586]
[1762737123761,0.21461954,106630.0,106620.0,0.06445]
[1762737123975,0.09548868,106630.0,106620.0,0.5032987]
[1762737124169,0.01057768,106630.0,106620.0,0.52126153]
[1762737124370,0.02457822,106640.0,106630.0,0.04876]
[1762737124566,0.08641647,106640.0,106630.0,0.41175803]
[1762737124762,1.50254822,106640.0,106630.0,0.62212826]
[1762737124968,0.18721496,106660.0,106650.0,0.0937871]
[1762737125167,0.01627,106660.0,106650.0,0.72379803]
[1762737125474,0.06829803,106660.0,106650.0,0.59779627]
[1762737125664,0.11734862,106660.0,106650.0,0.8081419]
[1762737125869,0.11954665,106660.0,106650.0,1.1403819]
[1762737126070,0.11954665,106660.0,106650.0,1.0466018]
[1762737126267,0.0045,106670.0,106660.0,0.0937783]
[1762737126471,0.12135475,106670.0,106660.0,0.47956356]
[1762737126667,0.12135475,106670.0,106640.0,0.2872199]
[1762737126668,0.04983,106650.0,106640.0,0.50433407]
[1762737126866,0.04983,106650.0,106640.0,0.19562613]
[1762737127069,0.0383,106660.0,106650.0,0.0937871]
[1762737127268,0.00500784,106660.0,106650.0,0.57335066]
[1762737127677,0.05483784,106660.0,106650.0,0.47956356]
[1762737127874,0.0045,106670.0,106660.0,0.0937783]
[1762737128078,0.05633,106670.0,106660.0,0.09597633]
[1762737128372,0.05633,106670.0,106660.0,0.00219803]
[1762737128578,0.05433,106670.0,106660.0,0.00219803]
[1762737128772,0.05733,106670.0,106660.0,0.00219803]
[1762737128981,0.05733,106670.0,106660.0,0.36299803]
[1762737129276,0.05933,106670.0,106660.0,0.57334186]
[1762737129477,0.05933,106670.0,106660.0,0.45677633]
[1762737129672,0.05933,106670.0,106660.0,0.57334186]
[1762737129876,0.3477,106670.0,106660.0,0.57334186]
[1762737130276,0.0095,106670.0,106660.0,0.66709332]
[1762737130678,0.0095,106670.0,106660.0,1.00513332]
[1762737131272,0.03153,106670.0,106660.0,1.00513332]
[1762737131473,0.05933,106670.0,106660.0,1.00513332]
[1762737131875,0.05933,106670.0,106660.0,0.45677633]
[1762737132074,0.05933,106670.0,106660.0,0.36299803]
[1762737132585,0.05933,106670.0,106660.0,0.45677633]
[1762737132980,0.05933,106670.0,106660.0,0.36299803]
[1762737133380,0.05933,106670.0,106660.0,0.45677633]
[1762737134985,0.03153,106670.0,106660.0,0.45677633]
[1762737135383,0.1174775,106670.0,106660.0,0.44223544]
[1762737135784,0.1452775,106670.0,106660.0,0.44223544]
[1762737135976,0.1452775,106670.0,106660.0,0.34845714]
[1762737136176,0.1452775,106670.0,106660.0,0.44223544]
[1762737136377,0.1452775,106670.0,106660.0,0.34845714]
[1762737136587,0.1452775,106670.0,106660.0,0.44223544]
[1762737136779,0.4825575,106670.0,106660.0,0.44223544]
[1762737136981,0.0095,106670.0,106660.0,0.5359869]
[1762737137279,0.01169803,106670.0,106660.0,0.5359869]
[1762737138483,0.04983,106680.0,106670.0,0.0937658]
[1762737138782,0.0661,106680.0,106670.0,0.51756243]
[1762737139382,0.0661,106680.0,106670.0,0.50928637]
[1762737139573,0.0661,106680.0,106670.0,0.41551687]
[1762737140385,0.0721,106680.0,106670.0,0.03017597]
[1762737141485,0.04983,106670.0,106660.0,0.44166636]
[1762737141685,0.04983,106670.0,106660.0,0.47167922]
[1762737141686,0.38663,106670.0,106660.0,0.47167922]
[1762737142083,0.38663,106670.0,106660.0,0.40024379]
[1762737142281,0.38663,106670.0,106660.0,0.47167922]
[1762737142987,0.38663,106670.0,106660.0,0.37790092]
[1762737143278,0.38863,106670.0,106660.0,0.37790092]
[1762737143486,0.38963,106670.0,106660.0,0.03015239]
[1762737143790,0.75043,106670.0,106660.0,0.12393069]
[1762737144379,0.75043,106670.0,106660.0,0.03015239]
[1762737144575,0.92066577,106670.0,106660.0,0.02781363]
[1762737144883,0.02203,106650.0,106640.0,0.4791311]
[1762737145090,0.38209878,106650.0,106640.0,0.12053483]
[1762737145286,0.74289878,106650.0,106640.0,0.12053483]
[1762737145683,0.74289878,106650.0,106640.0,0.02673893]
[1762737146290,0.74289878,106650.0,106640.0,0.0265409]
[1762737146491,0.74289878,106650.0,106630.0,0.41836857]
[1762737146492,0.05324454,106640.0,106630.0,0.41836857]
[1762737146685,0.22348031,106640.0,106630.0,0.00908857]
[1762737146992,0.22348031,106640.0,106630.0,0.0112866]
[1762737147289,0.05654,106630.0,106620.0,0.03254373]
[1762737147489,0.07576,106620.0,106610.0,0.41044544]
[1762737147695,0.07576,106620.0,106610.0,0.00261803]
[1762737147887,0.60679577,106620.0,106610.0,0.00042]
[1762737148783,0.05654,106610.0,106600.0,0.04936617]
[1762737148988,0.92373577,106610.0,106600.0,0.04936617]
[1762737149181,0.91673577,106610.0,106600.0,0.04936617]
[1762737149385,0.74656998,106610.0,106600.0,0.1453953]
[1762737149786,0.91680575,106610.0,106600.0,0.04936617]
[1762737149986,0.38564998,106610.0,106600.0,0.5615553]
[1762737150190,0.01839998,106610.0,106600.0,0.5876253]
[1762737150491,0.33614998,106610.0,106600.0,0.5876253]
[1762737151291,0.33614998,106610.0,106600.0,0.53839986]
[1762737151592,6.998e-05,106610.0,106600.0,0.53839986]
[1762737151887,0.33606998,106610.0,106600.0,0.53839986]
[1762737152288,0.33598998,106610.0,106600.0,0.69809832]
[1762737152984,0.00014073,106630.0,106620.0,0.07343]
[1762737153188,0.00014073,106630.0,106620.0,0.93995454]
[1762737153390,0.33602073,106630.0,106620.0,0.93995454]
[1762737153590,0.33602073,106630.0,106620.0,0.84614104]
[1762737154280,0.33602073,106630.0,106620.0,0.93995454]
[1762737154481,0.3135058,106630.0,106620.0,0.93995454]
[1762737154787,0.36109,106650.0,106640.0,0.05536]
[1762737154988,0.3923,106650.0,106640.0,0.05755803]
[1762737155592,0.3923,106650.0,106640.0,0.41835803]
[1762737155788,0.3923,106650.0,106640.0,0.43642803]
[1762737155985,0.05654,106650.0,106640.0,0.43642803]
[1762737156185,0.39218,106650.0,106640.0,0.53022393]
[1762737156387,0.39414,106650.0,106640.0,0.53022393]
[1762737156781,0.39414,106650.0,106640.0,0.55814203]
[1762737156985,0.39414,106650.0,106640.0,0.46434613]
[1762737157181,0.39414,106650.0,106640.0,0.44627613]
[1762737158497,0.39414,106650.0,106640.0,0.03011613]
[1762737158790,0.99414,106650.0,106640.0,0.03011613]
[1762737158996,0.56437577,106650.0,106640.0,0.03011613]
[1762737159386,0.56437577,106650.0,106640.0,0.0279181]
[1762737159686,0.56437577,106650.0,106640.0,0.03011613]
[1762737159887,0.92517577,106650.0,106640.0,0.03011613]
[1762737160693,0.06275,106640.0,106630.0,0.09394543]
[1762737160894,0.06275,106640.0,106630.0,0.09614346]
[1762737161097,0.23298577,106640.0,106630.0,0.00233876]
[1762737161296,0.23298577,106640.0,106630.0,0.09614346]
[1762737161493,0.59378577,106640.0,106630.0,0.00233876]
[1762737162095,0.59378577,106640.0,106630.0,0.00014073]
[1762737162592,0.57126718,106640.0,106630.0,0.00014073]
[1762737163397,0.57126718,106640.0,106630.0,0.00233876]
[1762737164689,0.66506308,106640.0,106630.0,0.00014073]
[1762737165192,0.05654,106610.0,106600.0,0.5280563]
[1762737165394,0.39154,106610.0,106600.0,0.16945433]
[1762737166192,0.39154,106610.0,106600.0,0.08162803]
[1762737166497,0.39154,106610.0,106600.0,0.17545913]
[1762737166696,0.39154,106610.0,106600.0,0.08162803]
[1762737166898,0.39154,106610.0,106600.0,0.17945913]
[1762737167601,0.39154,106610.0,106600.0,0.08562803]
[1762737168197,0.39154,106610.0,106600.0,0.01219803]
[1762737168198,0.56177577,106610.0,106600.0,0.01219803]
[1762737169301,0.92257577,106610.0,106600.0,0.01019803]
[1762737169507,1.01639807,106610.0,106600.0,0.006]
[1762737169696,0.1637611,106600.0,106590.0,0.00014073]
[1762737169897,0.69479687,106600.0,106590.0,0.00014073]
[1762737170705,0.57843829,106600.0,106590.0,0.00014073]
[1762737170907,0.57843829,106600.0,106590.0,0.00614073]
[1762737171306,0.67226939,106600.0,106590.0,0.00614073]
[1762737171601,0.63847744,106600.0,106590.0,0.00214073]
[1762737171799,0.63847744,106600.0,106590.0,0.00414073]
[1762737172199,0.63847744,106600.0,106590.0,0.00214073]
[1762737172401,0.63847744,106600.0,106590.0,0.00172693]
[1762737173209,0.63513687,106600.0,106580.0,0.00469109]
[1762737173506,0.86531577,106590.0,106580.0,0.02911517]
[1762737173815,0.95915567,106590.0,106580.0,0.0292559]
[1762737174402,0.95915567,106590.0,106580.0,0.00483182]
[1762737174707,0.86931577,106590.0,106580.0,0.00483182]
[1762737174904,0.96315567,106590.0,106580.0,0.00483182]
[1762737175411,0.0938487,106580.0,106570.0,7.188e-05]
[1762737175599,0.62488447,106580.0,106570.0,1e-08]
[1762737175800,0.62488627,106580.0,106560.0,0.0938655]
[1762737176000,0.69488,106570.0,106560.0,0.11467433]
[1762737176205,0.86511577,106570.0,106560.0,0.02080803]
[1762737176602,0.95897327,106570.0,106560.0,0.00219803]
[1762737176905,0.86518765,106570.0,106560.0,0.00219803]
[1762737177313,0.86518765,106570.0,106560.0,0.11467443]
[1762737177802,0.86718765,106570.0,106560.0,0.02080803]
[1762737178299,0.86694765,106570.0,106560.0,0.02080803]
[1762737178497,0.62696515,106570.0,106560.0,0.00219803]
[1762737179007,0.96176515,106570.0,106550.0,0.03673314]
[1762737179203,0.53103577,106560.0,106550.0,0.00703117]
[1762737179402,0.86483577,106560.0,106550.0,0.00703117]
[1762737179600,0.86483577,106560.0,106550.0,0.03893117]
[1762737179998,0.36187188,106570.0,106560.0,0.08262]
[1762737180205,0.33579188,106570.0,106560.0,0.17868433]
[1762737180403,0.00207188,106570.0,106560.0,0.17768433]
[1762737180603,0.00207188,106570.0,106560.0,1.13848433]
[1762737180913,0.00014073,106580.0,106570.0,0.1578675]
[1762737180914,0.33406073,106580.0,106570.0,0.1578675]
[1762737181103,0.33406073,106580.0,106570.0,0.59627136]
[1762737181304,0.00014073,106580.0,106570.0,0.59627136]
[1762737181602,0.33392,106590.0,106580.0,0.1764687]
[1762737181804,0.33392,106590.0,106580.0,0.53946673]
[1762737182112,1.05663577,106620.0,106600.0,0.08262]
[1762737182313,1.05663577,106620.0,106610.0,0.00219803]
[1762737182610,1.39047577,106620.0,106610.0,0.00219803]
[1762737183810,1.39547577,106620.0,106610.0,0.00219803]
[1762737184104,0.3658,106620.0,106610.0,0.06620803]
[1762737184310,0.69956,106620.0,106610.0,0.06620803]
[1762737184502,0.70356,106620.0,106610.0,0.00219803]
[1762737184904,0.009,106620.0,106610.0,0.52083033]
[1762737185098,0.009,106620.0,106610.0,0.42700803]
[1762737185303,0.009,106620.0,106610.0,0.16003033]
[1762737185510,0.005,106620.0,106610.0,0.06620803]
[1762737185711,0.007,106620.0,106610.0,0.42700803]
[1762737186206,0.33382073,106630.0,106620.0,0.08262]
[1762737186401,0.33374073,106630.0,106620.0,0.53943153]
[1762737187108,0.00014073,106630.0,106620.0,0.53943153]
[1762737187312,0.33370073,106630.0,106620.0,0.7096673]
[1762737187610,0.42472,106660.0,106650.0,0.06401]
[1762737187823,0.39748,106660.0,106650.0,0.06620803]
[1762737188111,0.06392,106660.0,106650.0,0.42700803]
[1762737188308,0.39748,106660.0,106650.0,0.06620803]
[1762737188716,0.06392,106650.0,106640.0,0.44356073]
[1762737188903,0.23415577,106650.0,106640.0,0.00233876]
[1762737189103,0.59495577,106650.0,106640.0,0.03423876]
[1762737189415,0.06392,106650.0,106640.0,0.03423876]
[1762737190112,0.07292,106650.0,106640.0,0.03423876]
[1762737190405,0.43372,106650.0,106640.0,0.03423876]
[1762737190610,0.43372,106650.0,106640.0,0.00233876]
[1762737191209,0.07292,106650.0,106640.0,0.00233876]
[1762737191410,0.07292,106650.0,106640.0,0.03423876]
[1762737191611,0.07292,106650.0,106640.0,0.12803466]
[1762737192010,0.07292,106650.0,106640.0,0.52094466]
[1762737192208,0.07292,106650.0,106640.0,0.17875466]
[1762737192417,0.07292,106650.0,106640.0,0.53955466]
[1762737192717,0.04111,106650.0,106640.0,0.53955466]
[1762737193315,0.009,106650.0,106640.0,0.53955466]
[1762737193816,0.3422,106650.0,106640.0,0.53955466]
[1762737194712,0.009,106650.0,106640.0,0.6556785]
[1762737195108,0.009,106650.0,106640.0,0.53955476]
[1762737195311,0.07292,106650.0,106640.0,0.44575876]
[1762737195511,0.18904384,106650.0,106640.0,0.44575876]
[1762737195706,0.18904384,106650.0,106640.0,0.08495876]
[1762737197015,0.18904384,106650.0,106640.0,0.00014073]
[1762737197219,0.64363104,106650.0,106640.0,0.00014073]
[1762737197408,0.54984384,106650.0,106640.0,0.00014073]
[1762737198012,1.24363104,106650.0,106640.0,0.00014073]
[1762737198213,0.06392,106620.0,106610.0,0.5186323]
[1762737198420,0.39732,106620.0,106610.0,0.42700803]
[1762737198617,0.3334,106620.0,106610.0,0.52083033]
[1762737199007,0.3334,106620.0,106610.0,0.42700803]
[1762737199008,0.39732,106620.0,106610.0,0.42700803]
[1762737199210,0.39732,106620.0,106610.0,0.52083033]
[1762737199412,0.39732,106620.0,106610.0,0.42800803]
[1762737199715,0.51344384,106620.0,106610.0,0.00319803]
[1762737200311,0.87424384,106620.0,106610.0,0.00319803]
[1762737200713,0.88808384,106620.0,106610.0,0.001]
[1762737201315,0.88808384,106620.0,106610.0,0.03509803]
[1762737201316,0.87424384,106620.0,106610.0,0.03509803]
[1762737202020,0.87424384,106620.0,106610.0,0.00319803]
[1762737202221,0.88908384,106620.0,106610.0,0.001]
[1762737202422,0.06392,106610.0,106600.0,0.11270134]
[1762737202719,0.18004384,106610.0,106600.0,0.11489937]
[1762737202920,0.18004384,106610.0,106600.0,0.14679937]
[1762737203115,0.06392,106610.0,106600.0,0.53970937]
[1762737203312,0.06392,106610.0,106600.0,0.17890937]
[1762737203508,0.06392,106610.0,106600.0,0.08507827]
[1762737203509,0.18004384,106610.0,106600.0,0.08507827]
[1762737203713,0.18004384,106610.0,106600.0,0.06646827]
[1762737203919,0.18004384,106610.0,106600.0,0.00245827]
[1762737204114,0.54084384,106610.0,106600.0,0.00026024]
[1762737204623,0.63466624,106610.0,106600.0,0.00026024]
[1762737205017,0.63466624,106610.0,106600.0,0.00126024]
[1762737205414,0.54084384,106610.0,106600.0,0.00126024]
[1762737205818,0.06392,106610.0,106600.0,0.17990057]
[1762737206014,0.36305297,106610.0,106600.0,0.54070057]
[1762737206519,0.36605297,106610.0,106600.0,0.53970057]
[1762737207122,0.33592,106610.0,106600.0,0.53970057]
[1762737207322,0.33792,106610.0,106600.0,0.53970057]
[1762737207624,0.3378,106610.0,106600.0,0.53970057]
[1762737208212,0.005,106610.0,106600.0,0.56441436]
[1762737208421,0.3378,106610.0,106600.0,0.56441436]
[1762737212125,0.30401647,106610.0,106600.0,0.56441436]
[1762737216027,0.36443073,106630.0,106620.0,0.1699447]
[1762737216223,0.36443073,106630.0,106620.0,0.53294273]
[1762737216623,0.36443073,106630.0,106620.0,0.43913803]
[1762737216624,0.39373073,106630.0,106620.0,0.43913803]
[1762737216831,0.50985457,106630.0,106620.0,0.43913803]
[1762737217524,0.50985457,106630.0,106620.0,0.42217803]
[1762737217725,0.51185457,106630.0,106620.0,0.36299803]
[1762737218025,0.87265457,106630.0,106620.0,0.00219803]
[1762737218227,0.96645047,106630.0,106610.0,0.3608]
[1762737218437,0.96645047,106630.0,106600.0,0.40441609]
[1762737218438,0.06147,106610.0,106600.0,0.43885024]
[1762737218625,0.06147,106610.0,106600.0,0.44104827]
[1762737218626,0.50967384,106610.0,106600.0,0.44104827]
[1762737218926,0.50967384,106610.0,106600.0,0.38580609]
[1762737219132,0.50967384,106610.0,106600.0,0.00026024]
[1762737220220,0.01222,106600.0,106580.0,0.02476247]
[1762737220429,1.16980384,106590.0,106580.0,0.01915803]
[1762737220633,1.22014764,106590.0,106580.0,0.01915803]
[1762737221120,1.22014764,106590.0,106580.0,0.07833803]
[1762737221121,1.16992097,106590.0,106580.0,0.07833803]
[1762737221325,1.16992097,106590.0,106580.0,0.07933803]
[1762737222126,1.05379713,106590.0,106580.0,0.17317793]
[1762737222331,1.16992097,106590.0,106580.0,0.17317793]
[1762737222732,1.16992097,106590.0,106580.0,0.17217793]
[1762737222933,0.33219713,106590.0,106580.0,0.17217793]
[1762737223232,0.80912097,106590.0,106580.0,0.17217793]
[1762737224135,0.80912097,106590.0,106580.0,0.07833803]
[1762737224331,0.80912097,106590.0,106580.0,0.01915803]
[1762737224735,0.80912097,106590.0,106580.0,0.01696]
[1762737225030,0.90295207,106590.0,106580.0,0.01696]
[1762737225436,0.80912097,106590.0,106580.0,0.01696]
[1762737226438,0.90295207,106590.0,106570.0,0.00014073]
[1762737226737,0.11612384,106580.0,106570.0,0.00233876]
[1762737227432,0.11612384,106580.0,106570.0,0.03205876]
[1762737227735,0.11612384,106580.0,106570.0,0.06151876]
[1762737228233,0.57076374,106580.0,106570.0,0.00233876]
[1762737228433,0.57076374,106580.0,106570.0,0.00214073]
[1762737228936,0.47692384,106580.0,106570.0,0.00214073]
[1762737229337,0.57076374,106580.0,106570.0,0.00214073]
[1762737229527,0.47692384,106580.0,106570.0,0.15828746]
[1762737229727,0.80908384,106580.0,106570.0,0.06443876]
[1762737229928,0.81208384,106580.0,106570.0,0.06243876]
[1762737231335,0.69596,106580.0,106570.0,0.15628746]
[1762737231537,0.81208384,106580.0,106570.0,0.06243876]
[1762737232333,0.90592374,106580.0,106570.0,0.06243876]
[1762737233326,0.90592374,106580.0,106570.0,0.00433876]
[1762737234041,0.90592374,106580.0,106570.0,0.00214073]
[1762737237429,0.57376374,106580.0,106570.0,0.00433876]
[1762737237634,0.90596374,106580.0,106570.0,0.00214073]
[1762737238141,0.0938575,106560.0,106550.0,0.00469241]
[1762737238339,1.01910518,106560.0,106550.0,0.00469241]
[1762737238744,0.0938663,106550.0,106540.0,0.01702604]
[1762737239040,0.57079014,106550.0,106540.0,0.01922407]
[1762737240040,0.57079014,106550.0,106540.0,6.604e-05]
[1762737240239,0.57079014,106550.0,106530.0,0.00014073]
[1762737240240,0.0938751,106540.0,106530.0,0.00014073]
[1762737240439,0.90300434,106540.0,106520.0,0.02180373]
[1762737240646,0.47692384,106530.0,106520.0,0.02400176]
[1762737240946,0.57080774,106530.0,106520.0,0.02400176]
[1762737241440,0.5708901,106530.0,106520.0,0.03765944]
[1762737241942,0.36088236,106530.0,106520.0,0.02400176]
[1762737242145,0.5708901,106530.0,106520.0,0.02400176]
[1762737242643,0.68701394,106530.0,106520.0,0.00569373]
[1762737244538,0.0938927,106520.0,106510.0,9.38e-05]
[1762737244733,1.01918038,106520.0,106510.0,9.38e-05]
[1762737244940,0.0939049,106510.0,106490.0,0.09861186]
[1762737245143,0.90307424,106500.0,106490.0,0.00689309]
[1762737245344,0.90307424,106500.0,106490.0,0.00469506]
[1762737246350,0.80926906,106500.0,106490.0,0.00789309]
[1762737246541,0.80926906,106500.0,106490.0,0.00889309]
[1762737246845,0.90317946,106500.0,106490.0,0.00789309]
[1762737247149,0.90317946,106500.0,106490.0,0.00569506]
[1762737247354,0.80926906,106500.0,106490.0,0.00569506]
[1762737248345,0.57093946,106500.0,106490.0,0.00789309]
[1762737248546,0.80930906,106500.0,106490.0,0.06536309]
[1762737248954,0.80930906,106500.0,106490.0,0.15928229]
[1762737249142,0.54241946,106500.0,106490.0,0.06536309]
[1762737249343,0.90321946,106500.0,106490.0,0.06536309]
[1762737249543,0.44850906,106500.0,106490.0,0.06536309]
[1762737249743,0.80930906,106500.0,106490.0,0.06536309]
[1762737250047,0.44854906,106500.0,106490.0,0.06536309]
[1762737250454,0.90325946,106500.0,106490.0,0.00569506]
[1762737251151,0.90325946,106500.0,106490.0,0.00789309]
[1762737251745,0.90325946,106500.0,106490.0,0.06536309]
[1762737252148,0.90325946,106500.0,106490.0,0.00569506]
[1762737252845,0.90325946,106500.0,106490.0,0.00789309]
[1762737253245,0.80934906,106500.0,106490.0,0.00789309]
[1762737253448,0.90325946,106500.0,106490.0,0.00789309]
[1762737254053,0.90425946,106500.0,106490.0,0.00469506]
[1762737254449,0.90525946,106500.0,106490.0,0.00469506]
[1762737254854,0.093928,106480.0,106470.0,0.03285197]
[1762737255044,0.093928,106480.0,106470.0,0.09252]
[1762737255045,0.7216,106480.0,106470.0,0.09252]
[1762737255249,0.00014073,106490.0,106480.0,0.07458]
[1762737255444,0.33250073,106490.0,106480.0,0.07677803]
[1762737256044,0.69330073,106490.0,106480.0,0.07677803]
[1762737256353,0.86429223,106490.0,106480.0,0.07677803]
[1762737256750,0.95821143,106490.0,106480.0,0.01930803]
[1762737257144,0.95821143,106490.0,106480.0,0.01711]
[1762737257754,0.96321143,106490.0,106480.0,0.01711]
[1762737257948,0.093928,106480.0,106470.0,0.03285197]
[1762737258255,0.6257195,106480.0,106470.0,0.03285197]
[1762737258648,0.0939368,106470.0,106460.0,0.10357136]
[1762737258854,0.95817285,106470.0,106460.0,0.10357136]
[1762737259853,0.95817285,106470.0,106460.0,0.05465835]
[1762737260257,0.95817285,106470.0,106460.0,0.03754835]
[1762737260756,0.86423605,106470.0,106460.0,0.03754835]
[1762737260958,0.86423605,106470.0,106460.0,0.05885638]
[1762737261156,0.95817295,106470.0,106460.0,0.05885638]
[1762737261359,0.86423605,106470.0,106460.0,0.05885638]
[1762737261746,0.95817295,106470.0,106460.0,0.03954835]
[1762737262763,0.0939457,106460.0,106450.0,0.04891301]
[1762737262946,0.5317915,106460.0,106450.0,0.04891301]
[1762737263153,0.6257372,106460.0,106450.0,0.05111104]
[1762737263471,0.3608,106460.0,106450.0,0.20253554]
[1762737263757,0.00022528,106470.0,106460.0,0.07458]
[1762737263960,0.50361678,106470.0,106460.0,0.12633992]
[1762737264160,0.59755368,106470.0,106460.0,0.01930803]